fUSD/lending_fUSD_20240317
["ID","MTS","AMOUNT","RATE_DAILY","PERIOD"]
[319407946,1710718254425,-269.16,0.0003,2]
[319407947,1710718254434,-269.16,0.0003,2]
[319407948,1710718254444,-269.16,0.0003,2]
[319407949,1710718254453,-269.16,0.0003,2]
[319407950,1710718254463,-269.16,0.0003,2]
[319407951,1710718254473,-269.16,0.0003,2]
[319407952,1710718254483,-269.16,0.0003,2]
[319407953,1710718254492,-269.16,0.0003,2]
[319407954,1710718254502,-269.16,0.0003,2]
[319407955,1710718254511,-269.16,0.0003,2]
[319407956,1710718254521,-269.16,0.0003,2]
[319407957,1710718254531,-269.16,0.0003,2]
[319407958,1710718254542,-269.16,0.0003,2]
[319407959,1710718254554,-269.16,0.0003,2]
[319407960,1710718254564,-269.16,0.0003,2]
[319407961,1710718254573,-269.16,0.0003,2]
[319407962,1710718254582,-269.16,0.0003,2]
[319407963,1710718254591,-269.16,0.0003,2]
[319407964,1710718254601,-269.16,0.0003,2]
[319407965,1710718254610,-269.16,0.0003,2]
[319407966,1710718254620,-269.16,0.0003,2]
[319407967,1710718254630,-269.16,0.0003,2]
[319407968,1710718254640,-269.16,0.0003,2]
[319407969,1710718254650,-269.16,0.0003,2]
[319407970,1710718254659,-269.16,0.0003,2]
[319407971,1710718254669,-269.16,0.0003,2]
[319407972,1710718254678,-269.16,0.0003,2]
[319407973,1710718254689,-269.16,0.0003,2]
[319407974,1710718254701,-269.16,0.0003,2]
[319407975,1710718254711,-269.16,0.0003,2]
[319407976,1710718254721,-269.16,0.0003,2]
[319407977,1710718254731,-269.16,0.0003,2]
[319407978,1710718254741,-269.16,0.0003,2]
[319407979,1710718254750,-269.16,0.0003,2]
[319407980,1710718254759,-269.16,0.0003,2]
[319407981,1710718254769,-269.16,0.0003,2]
[319407982,1710718254779,-269.16,0.0003,2]
[319407983,1710718254788,-269.16,0.0003,2]
[319407984,1710718254798,-269.16,0.0003,2]
[319407985,1710718254809,-269.16,0.0003,2]
[319407986,1710718254819,-269.16,0.0003,2]
[319407987,1710718254828,-269.16,0.0003,2]
[319407988,1710718254837,-269.16,0.0003,2]
[319407989,1710718254847,-150.0,0.00030053,2]
[319407990,1710718254856,-533.417863,0.000301,2]
[319407991,1710718254865,-3321.4725,0.00030136,2]
[319407992,1710718254875,-510.0,0.00030136,120]
[319407993,1710718254885,-2540.0,0.00030137,10]
[319407994,1710718254895,-440.27019386,0.00030137,5]
[319407995,1710718254904,-150.0,0.00030137,2]
[319407996,1710718254913,-155.0,0.00030138,2]
[319407997,1710718254922,-1533.01337417,0.00030148,2]
[319407998,1710718254932,-9183.96,0.000302,2]
[319407999,1710718254941,-9183.96,0.000302,2]
[319408000,1710718254951,-9183.96,0.000302,2]
[319408001,1710718254960,-9183.96,0.000302,2]
[319408002,1710718254970,-9183.96,0.000302,2]
[319408003,1710718254980,-9183.96,0.000302,2]
[319408004,1710718254989,-9183.96,0.000302,2]
[319408005,1710718254998,-9183.96,0.000302,2]
[319408006,1710718255008,-9183.96,0.000302,2]
[319408007,1710718255017,-9183.96,0.000302,2]
[319408008,1710718255027,-9183.96,0.000302,2]
[319408009,1710718255047,-9183.96,0.000302,2]
[319408010,1710718255059,-9183.96,0.000302,2]
[319408011,1710718255069,-9183.96,0.000302,2]
[319408012,1710718255079,-9183.96,0.000302,2]
[319408013,1710718255089,-9183.96,0.000302,2]
[319408014,1710718255099,-9183.96,0.000302,2]
[319408015,1710718255109,-9183.96,0.000302,2]
[319408016,1710718255120,-9183.96,0.000302,2]
[319408017,1710718255132,-9183.96,0.000302,2]
[319408018,1710718255142,-1330.473295,0.00030205,2]
[319408019,1710718255153,-1272.15,0.00030236,4]
[319408020,1710718255163,-1272.15,0.00030236,4]
[319408021,1710718255173,-1272.15,0.00030236,4]
[319408022,1710718255182,-1272.15,0.00030236,4]
[319408023,1710718255192,-1272.32948951,0.00030236,4]
[319408024,1710718255203,-488.91627476,0.00030236,4]
[319408025,1710718255213,-699.21,0.00030236,4]
[319408026,1710718255224,-699.21,0.00030236,4]
[319408027,1710718255235,-699.21,0.00030236,4]
[319408028,1710718255245,-699.21,0.00030236,4]
[319408029,1710718255256,-699.35038376,0.00030236,4]
[319408030,1710718255265,-1021.84,0.00030236,4]
[319408031,1710718255275,-1021.84,0.00030236,4]
[319408032,1710718255284,-1021.84,0.00030236,4]
[319408033,1710718255293,-1021.84,0.00030236,4]
[319408034,1710718255303,-1021.88102448,0.00030236,4]
[319408035,1710718255313,-7649.4,0.00030237,21]
[319408036,1710718255322,-151.30766298,0.0003025,7]
[319408037,1710718255332,-510.0,0.0003041,120]
[319408038,1710718255342,-152.438655,0.00030411,14]
[319408039,1710718255351,-1533.01337417,0.00030451,2]
[319408040,1710718255360,-154.12575019,0.00030575,7]
[319408041,1710718255370,-151.08790136,0.00030598,2]
[319408042,1710718255379,-300.0,0.000306,2]
[319408043,1710718255388,-1330.473295,0.00030681,2]
[319408044,1710718255398,-510.0,0.00030684,120]
[319408045,1710718255407,-150.0,0.00030685,2]
[319408046,1710718255416,-155.33791433,0.00030713,7]
[319408047,1710718255425,-3175.841873,0.000308,2]
[319408048,1710718255434,-6031.329791,0.000308,2]
[319408049,1710718255444,-1984.901171,0.000308,2]
[319408050,1710718255453,-2778.86164,0.000308,2]
[319408051,1710718255462,-1533.01337417,0.00030825,2]
[319408052,1710718255472,-1330.473295,0.00030838,2]
[319408053,1710718255480,-500.0,0.00030932,2]
[319408054,1710718255489,-610.22,0.00030932,2]
[319408055,1710718255499,-510.0,0.00030958,120]
[319408056,1710718255508,-867.54380044,0.00031,7]
[319408057,1710718255517,-500.0,0.00031,30]
[319408058,1710718255526,-500.0,0.00031,30]
[319408059,1710718255535,-500.0,0.00031,30]
[319408060,1710718255547,-500.00000001,0.00031,30]
[319408061,1710718255556,-2399.99999904,0.00031,32]
[319408062,1710718255565,-2000.0,0.00031,2]
[319408063,1710718255581,-284.76,0.00031,3]
[319408064,1710718255591,-1950.0,0.00031,3]
[319408065,1710718255600,-1000.52,0.00031,2]
[319408066,1710718255609,-1000.52,0.00031,2]
[319408067,1710718255618,-150.0,0.00031053,2]
[319408068,1710718255627,-1330.473295,0.00031092,2]
[319408069,1710718255639,-151.30766298,0.00031094,7]
[319408070,1710718255648,-300.0,0.000311,2]
[319408071,1710718255659,-309.82,0.000311,2]
[319408072,1710718255668,-1533.01337417,0.00031101,2]
[319408073,1710718255677,-150.0,0.00031111,2]
[319408074,1710718255687,-150.0,0.00031114,2]
[319408075,1710718255696,-1500.0,0.00031214,2]
[319408076,1710718255705,-300.0,0.00031228,2]
[319408077,1710718255715,-510.0,0.00031232,120]
[319408078,1710718255725,-152.438655,0.00031233,14]
[319408079,1710718255735,-150.0,0.00031233,2]
[319408080,1710718255745,-1500.0,0.00031234,2]
[319408081,1710718255754,-150.0,0.00031242,2]
[319408082,1710718255765,-150.0,0.00031254,2]
[319408083,1710718255774,-300.0,0.00031261,2]
[319408084,1710718255784,-150.0,0.00031268,2]
[319408085,1710718255794,-1500.0,0.00031275,2]
[319408086,1710718255803,-1330.473295,0.0003129,2]
[319408087,1710718255814,-154.12575019,0.00031308,7]
[319408088,1710718255823,-150.0,0.00031324,2]
[319408089,1710718255833,-1500.0,0.0003136,2]
[319408090,1710718255843,-1500.0,0.00031368,2]
[319408091,1710718255852,-1500.0,0.00031402,2]
[319408092,1710718255862,-150.0,0.00031402,2]
[319408093,1710718255873,-300.0,0.00031416,2]
[319408094,1710718255882,-150.0,0.00031417,2]
[319408095,1710718255892,-1500.0,0.00031421,2]
[319408096,1710718255901,-1500.0,0.00031425,2]
[319408097,1710718255911,-212.18575612,0.00031447,2]
[319408098,1710718255921,-300.0,0.00031448,2]
[319408099,1710718255931,-150.0,0.00031461,2]
[319408100,1710718255940,-1500.0,0.00031469,2]
[319408101,1710718255950,-1500.0,0.0003147,2]
[319408102,1710718255959,-1500.0,0.00031476,2]
[319408103,1710718255969,-150.0,0.00031477,2]
[319408104,1710718255979,-1500.0,0.00031477,2]
[319408105,1710718255989,-300.0,0.0003148,2]
[319408106,1710718255998,-150.0,0.00031481,2]
[319408107,1710718256009,-1500.0,0.00031482,2]
[319408108,1710718256019,-150.0,0.00031482,2]
[319408109,1710718256030,-150.80584847,0.00031484,7]
[319408110,1710718256039,-1533.01337417,0.00031491,2]
[319408111,1710718256050,-10026.90428833,0.000315,15]
[319408112,1710718256061,-2464.29703216,0.000315,5]
[319408113,1710718256071,-300.0,0.00031502,2]
[319408114,1710718256082,-4428.63,0.00031506,2]
[319408115,1710718256091,-510.0,0.00031506,120]
[319408116,1710718256101,-155.0,0.00031508,2]
[319408117,1710718256111,-1500.0,0.00031533,2]
[319408118,1710718256121,-1500.0,0.00031534,2]
[319408119,1710718256131,-150.0,0.00031539,2]
[319408120,1710718256140,-150.0,0.00031543,2]
[319408121,1710718256149,-1500.0,0.0003155,2]
[319408122,1710718256159,-150.0,0.0003155,2]
[319408123,1710718256169,-150.0,0.00031563,2]
[319408124,1710718256179,-150.0,0.00031564,2]
[319408125,1710718256188,-150.0,0.00031574,2]
[319408126,1710718256198,-1500.0,0.00031574,2]
[319408127,1710718256208,-1500.0,0.00031576,2]
[319408128,1710718256218,-150.0,0.00031577,2]
[319408129,1710718256227,-1500.0,0.00031578,2]
[319408130,1710718256238,-1500.0,0.00031583,2]
[319408131,1710718256247,-1500.0,0.00031586,2]
[319408132,1710718256257,-300.0,0.00031589,2]
[319408133,1710718256267,-1500.0,0.00031592,2]
[319408134,1710718256278,-1500.0,0.00031595,2]
[319408135,1710718256287,-1500.0,0.00031598,2]
[319408136,1710718256296,-150.0,0.00031599,2]
[319408137,1710718256306,-3629.53357,0.000316,2]
[319408138,1710718256316,-1100.0,0.000316,4]
[319408139,1710718256326,-6892.948333,0.000316,2]
[319408140,1710718256388,-2268.458481,0.000316,2]
[319408141,1710718256400,-3175.841874,0.000316,2]
[319408142,1710718256410,-300.0,0.000316,2]
[319408143,1710718256419,-150.0,0.00031604,2]
[319408144,1710718256428,-150.0,0.00031618,2]
[319408145,1710718256437,-150.0,0.0003162,2]
[319408146,1710718256446,-1330.473295,0.00031622,2]
[319408147,1710718256455,-1500.0,0.00031631,2]
[319408148,1710718256463,-150.0,0.00031631,2]
[319408149,1710718256473,-1500.0,0.00031634,2]
[319408150,1710718256483,-150.0,0.00031635,2]
[319408151,1710718256493,-150.0,0.00031637,2]
[319408152,1710718256503,-1500.0,0.0003164,2]
[319408153,1710718256514,-150.0,0.00031643,2]
[319408154,1710718256524,-470.69,0.00031644,2]
[319408155,1710718256534,-150.0,0.00031644,2]
[319408156,1710718256545,-300.0,0.00031651,2]
[319408157,1710718256556,-150.0,0.00031659,2]
[319408158,1710718256567,-150.0,0.00031661,2]
[319408159,1710718256576,-150.0,0.00031663,2]
[319408160,1710718256586,-150.0,0.00031665,2]
[319408161,1710718256595,-150.0,0.00031665,2]
[319408162,1710718256605,-245.90566,0.00031665,2]
[319408163,1710718256616,-150.0,0.00031668,2]
[319408164,1710718256628,-1500.0,0.00031669,2]
[319408165,1710718256639,-150.0,0.0003167,2]
[319408166,1710718256649,-3000.0,0.0003167,2]
[319408167,1710718256658,-150.0,0.00031671,2]
[319408168,1710718256666,-150.0,0.00031673,2]
[319408169,1710718256675,-150.0,0.00031674,2]
[319408170,1710718256683,-150.0,0.00031674,2]
[319408171,1710718256692,-150.0,0.00031677,2]
[319408172,1710718256701,-1500.0,0.00031684,2]
[319408173,1710718256711,-150.0,0.00031684,2]
[319408174,1710718256719,-150.0,0.00031684,2]
[319408175,1710718256728,-150.0,0.00031685,2]
[319408176,1710718256738,-150.0,0.00031688,2]
[319408177,1710718256747,-150.0,0.00031696,2]
[319408178,1710718256756,-150.0,0.00031699,2]
[319408179,1710718256766,-150.0,0.00031699,2]
[319408180,1710718256775,-150.0,0.00031705,2]
[319408181,1710718256785,-1500.0,0.00031706,2]
[319408182,1710718256794,-1500.0,0.00031707,2]
[319408183,1710718256803,-150.0,0.00031709,2]
[319408184,1710718256813,-150.0,0.00031709,2]
[319408185,1710718256822,-150.0,0.00031711,2]
[319408186,1710718256832,-1500.0,0.00031714,2]
[319408187,1710718256841,-150.0,0.00031721,2]
[319408188,1710718256850,-1500.0,0.00031728,2]
[319408189,1710718256859,-200.0,0.00031728,2]
[319408190,1710718256868,-150.0,0.00031729,2]
[319408191,1710718256877,-150.0,0.00031731,2]
[319408192,1710718256886,-1533.01337417,0.00031732,2]
[319408193,1710718256895,-150.0,0.00031733,2]
[319408194,1710718256905,-150.0,0.00031734,2]
[319408195,1710718256914,-150.0,0.00031738,2]
[319408196,1710718256923,-1500.0,0.00031738,2]
[319408197,1710718256932,-150.0,0.00031739,2]
[319408198,1710718256940,-150.0,0.00031741,2]
[319408199,1710718256950,-150.0,0.0003175,2]
[319408200,1710718256959,-300.0,0.00031752,2]
[319408201,1710718256969,-150.0,0.00031752,2]
[319408202,1710718256979,-100000.0,0.00031755,4]
[319408203,1710718256988,-1500.0,0.00031755,2]
[319408204,1710718256997,-150.0,0.00031761,2]
[319408205,1710718257006,-150.0,0.00031765,2]
[319408206,1710718257015,-150.0,0.00031766,2]
[319408207,1710718257025,-150.0,0.00031769,2]
[319408208,1710718257033,-150.0,0.00031773,2]
[319408209,1710718257043,-510.0,0.0003178,120]
[319408210,1710718257052,-150.0,0.00031781,2]
[319408211,1710718257062,-150.0,0.00031783,2]
[319408212,1710718257072,-150.0,0.00031788,2]
[319408213,1710718257081,-155.77767553,0.00031789,30]
[319408214,1710718257090,-150.0,0.00031791,2]
[319408215,1710718257100,-11389.73288969,0.000318,4]
[319408216,1710718257109,-9183.96,0.000318,2]
[319408217,1710718257118,-9183.96,0.000318,2]
[319408218,1710718257127,-9183.96,0.000318,2]
[319408219,1710718257137,-9183.96,0.000318,2]
[319408220,1710718257146,-9183.96,0.000318,2]
[319408221,1710718257155,-9183.96,0.000318,2]
[319408222,1710718257165,-9183.96,0.000318,2]
[319408223,1710718257174,-9183.96,0.000318,2]
[319408224,1710718257183,-9183.96,0.000318,2]
[319408225,1710718257193,-9183.96,0.000318,2]
[319408226,1710718257202,-9183.96,0.000318,2]
[319408227,1710718257211,-9183.96,0.000318,2]
[319408228,1710718257220,-9183.96,0.000318,2]
[319408229,1710718257229,-9183.96,0.000318,2]
[319408230,1710718257239,-9183.96,0.000318,2]
[319408231,1710718257248,-9183.96,0.000318,2]
[319408232,1710718257257,-9183.96,0.000318,2]
[319408233,1710718257267,-9183.96,0.000318,2]
[319408234,1710718257276,-9183.96,0.000318,2]
[319408235,1710718257287,-9183.96,0.000318,2]
[319408236,1710718257297,-1500.0,0.00031803,2]
[319408237,1710718257305,-150.0,0.00031809,2]
[319408238,1710718257315,-150.0,0.00031811,2]
[319408239,1710718257324,-1500.0,0.00031811,2]
[319408240,1710718257333,-300.0,0.00031813,2]
[319408241,1710718257342,-300.0,0.00031813,2]
[319408242,1710718257351,-150.0,0.00031819,2]
[319408243,1710718257360,-150.0,0.0003182,2]
[319408244,1710718257368,-150.0,0.0003182,2]
[319408245,1710718257377,-150.0,0.00031822,2]
[319408246,1710718257387,-154.12575019,0.00031823,7]
[319408247,1710718257396,-150.0,0.00031827,2]
[319408248,1710718257405,-150.0,0.00031828,2]
[319408249,1710718257414,-1500.0,0.00031829,2]
[319408250,1710718257423,-150.0,0.00031829,2]
[319408251,1710718257432,-150.0,0.00031834,2]
[319408252,1710718257441,-300.0,0.00031837,2]
[319408253,1710718257450,-300.0,0.00031839,2]
[319408254,1710718257460,-150.0,0.00031842,2]
[319408255,1710718257469,-150.0,0.00031842,2]
[319408256,1710718257478,-151.30766299,0.00031842,7]
[319408257,1710718257487,-150.0,0.00031847,2]
[319408258,1710718257497,-150.0,0.00031847,2]
[319408259,1710718257506,-300.0,0.00031849,2]
[319408260,1710718257515,-150.0,0.00031852,2]
[319408261,1710718257524,-151.08790136,0.00031854,2]
[319408262,1710718257533,-150.0,0.00031856,2]
[319408263,1710718257542,-150.0,0.00031858,2]
[319408264,1710718257552,-150.0,0.00031859,2]
[319408265,1710718257563,-150.0,0.00031859,2]
[319408266,1710718257572,-150.0,0.00031861,2]
[319408267,1710718257581,-150.0,0.00031861,2]
[319408268,1710718257591,-150.0,0.00031868,2]
[319408269,1710718257601,-1500.0,0.00031869,2]
[319408270,1710718257611,-1500.0,0.00031874,2]
[319408271,1710718257619,-1500.0,0.00031875,2]
[319408272,1710718257629,-150.0,0.00031876,2]
[319408273,1710718257639,-150.0,0.00031878,2]
[319408274,1710718257648,-150.0,0.00031878,2]
[319408275,1710718257658,-150.0,0.00031882,2]
[319408276,1710718257667,-300.0,0.00031888,2]
[319408277,1710718257676,-150.0,0.0003189,2]
[319408278,1710718257685,-150.0,0.00031892,2]
[319408279,1710718257694,-150.0,0.00031895,2]
[319408280,1710718257704,-150.0,0.000319,2]
[319408281,1710718257713,-150.0,0.000319,4]
[319408282,1710718257722,-561.0,0.000319,20]
[319408283,1710718257731,-200.0,0.000319,4]
[319408284,1710718257740,-150.0,0.00031903,2]
[319408285,1710718257749,-2728.38797994,0.00031909,2]
[319408286,1710718257759,-150.0,0.00031925,2]
[319408287,1710718257768,-150.0,0.00031926,2]
[319408288,1710718257778,-2938.59976707,0.0003193,2]
[319408289,1710718257788,-150.0,0.0003193,2]
[319408290,1710718257798,-150.0,0.00031932,2]
[319408291,1710718257809,-150.0,0.00031932,2]
[319408292,1710718257817,-5158.90810592,0.00031934,2]
[319408293,1710718257826,-1500.0,0.00031936,2]
[319408294,1710718257835,-150.0,0.00031936,2]
[319408295,1710718257845,-150.0,0.00031936,2]
[319408296,1710718257854,-415.60184867,0.00031942,2]
[319408297,1710718257863,-500.0,0.00031943,4]
[319408298,1710718257872,-150.0,0.00031943,2]
[319408299,1710718257881,-150.0,0.00031943,2]
[319408300,1710718257890,-6234.40720107,0.00031944,2]
[319408301,1710718257899,-150.0,0.00031947,2]
[319408302,1710718257908,-150.0,0.00031948,2]
[319408303,1710718257918,-150.0,0.00031953,2]
[319408304,1710718257927,-1500.0,0.00031954,2]
[319408305,1710718257936,-300.0,0.00031955,2]
[319408306,1710718257945,-1500.0,0.00031957,2]
[319408307,1710718257954,-2831.49228533,0.0003196,2]
[319408308,1710718257963,-1500.0,0.0003196,2]
[319408309,1710718257972,-150.0,0.00031963,2]
[319408310,1710718257982,-150.0,0.00031965,2]
[319408311,1710718257991,-1500.0,0.00031966,2]
[319408312,1710718258000,-150.0,0.0003197,2]
[319408313,1710718258009,-150.0,0.0003197,2]
[319408314,1710718258018,-400.0,0.0003197,2]
[319408315,1710718258028,-400.0,0.0003197,2]
[319408316,1710718258038,-39067.5029301,0.00031975,2]
[319408317,1710718258047,-813.8295008,0.00031975,2]
[319408318,1710718258057,-446.1284371,0.00031975,2]
[319408319,1710718258066,-1439.0091511,0.00031975,2]
[319408320,1710718258075,-1500.0,0.00031977,2]
[319408321,1710718258085,-150.0,0.00031978,2]
[319408322,1710718258094,-150.0,0.00031981,2]
[319408323,1710718258104,-211.6428663,0.00031984,2]
[319408324,1710718258114,-3123.77929245,0.00031985,2]
[319408325,1710718258124,-2000.0,0.00031985,2]
[319408326,1710718258133,-200.0,0.00031985,2]
[319408327,1710718258142,-2000.0,0.00031985,2]
[319408328,1710718258151,-200.0,0.00031985,2]
[319408329,1710718258160,-221.33526907,0.00031985,4]
[319408330,1710718258169,-2000.0,0.00031985,2]
[319408331,1710718258179,-200.0,0.00031985,2]
[319408332,1710718258188,-200.0,0.00031985,2]
[319408333,1710718258198,-464.67932615,0.00031986,2]
[319408334,1710718258208,-150.0,0.00031986,2]
[319408335,1710718258218,-2698.52576562,0.00031986,2]
[319408336,1710718258227,-2966.66057185,0.00031987,2]
[319408337,1710718258236,-420.15493381,0.00031988,2]
[319408338,1710718258246,-2548.87398495,0.00031988,2]
[319408339,1710718258255,-2856.87318626,0.00031988,2]
[319408340,1710718258264,-2947.21568006,0.00031989,2]
[319408341,1710718258273,-2853.69592765,0.0003199,2]
[319408342,1710718258283,-9129.82881485,0.0003199,2]
[319408343,1710718258291,-1563.76697836,0.0003199,2]
[319408344,1710718258301,-2931.03474318,0.00031991,2]
[319408345,1710718258310,-2398.61484769,0.00031991,2]
[319408346,1710718258319,-734.49552381,0.00031992,2]
[319408347,1710718258328,-484.04090975,0.00031992,2]
[319408348,1710718258338,-9115.68369569,0.00031992,2]
[319408349,1710718258347,-2944.81500489,0.00031992,2]
[319408350,1710718258356,-2952.59218033,0.00031992,2]
[319408351,1710718258365,-2286.44187784,0.00031994,2]
[319408352,1710718258375,-2792.35807192,0.00031995,2]
[319408353,1710718258384,-9079.39826127,0.00031995,2]
[319408354,1710718258393,-2945.35812526,0.00031995,2]
[319408355,1710718258402,-2946.03727642,0.00031995,2]
[319408356,1710718258412,-468.20410585,0.00031996,2]
[319408357,1710718258421,-2844.50981889,0.00031996,2]
[319408358,1710718258430,-2863.76935853,0.00031997,2]
[319408359,1710718258439,-2754.8350578,0.00031997,2]
[319408360,1710718258449,-2538.46218756,0.00031997,2]
[319408361,1710718258459,-9414.52894888,0.00031998,2]
[319408362,1710718258468,-500.0,0.00031999,4]
[319408363,1710718258477,-500.0,0.00031999,4]
[319408364,1710718258486,-500.0,0.00031999,4]
[319408365,1710718258495,-200000.0,0.00032,32]
[319408366,1710718258504,-200000.0,0.00032,22]
[319408367,1710718258513,-1978.27099539,0.00032,2]
[319408368,1710718258523,-2100.0,0.00032,2]
[319408369,1710718258532,-9163.83331256,0.00032,2]
[319408370,1710718258542,-9685.90585774,0.00032,2]
[319408371,1710718258552,-2855.0787446,0.00032,2]
[319408372,1710718258565,-19803.23683673,0.00032,2]
[319408373,1710718258574,-236.53,0.00032,7]
[319408374,1710718258583,-500.0,0.00032,7]
[319408375,1710718258593,-500.0,0.00032,7]
[319408376,1710718258606,-500.0,0.00032,7]
[319408377,1710718258615,-500.0,0.00032,7]
[319408378,1710718258624,-500.0,0.00032,7]
[319408379,1710718258636,-500.0,0.00032,7]
[319408380,1710718258646,-500.0,0.00032,7]
[319408381,1710718258656,-500.0,0.00032,7]
[319408382,1710718258665,-500.0,0.00032,7]
[319408383,1710718258675,-500.0,0.00032,7]
[319408384,1710718258684,-500.0,0.00032,7]
[319408385,1710718258693,-500.0,0.00032,7]
[319408386,1710718258702,-500.0,0.00032,7]
[319408387,1710718258712,-500.0,0.00032,7]
[319408388,1710718258722,-500.0,0.00032,7]
[319408389,1710718258731,-500.0,0.00032,7]
[319408390,1710718258741,-500.0,0.00032,7]
[319408391,1710718258750,-500.0,0.00032,7]
[319408392,1710718258760,-500.0,0.00032,7]
[319408393,1710718258770,-500.0,0.00032,7]
[319408394,1710718258779,-500.0,0.00032,7]
[319408395,1710718258789,-500.0,0.00032,7]
[319408396,1710718258798,-500.0,0.00032,7]
[319408397,1710718258808,-500.0,0.00032,7]
[319408398,1710718258819,-500.0,0.00032,7]
[319408399,1710718258828,-500.0,0.00032,7]
[319408400,1710718258838,-500.0,0.00032,7]
[319408401,1710718258847,-500.0,0.00032,7]
[319408402,1710718258857,-500.0,0.00032,7]
[319408403,1710718258867,-500.0,0.00032,7]
[319408404,1710718258877,-500.0,0.00032,7]
[319408405,1710718258886,-500.0,0.00032,7]
[319408406,1710718258896,-500.0,0.00032,7]
[319408407,1710718258905,-500.0,0.00032,7]
[319408408,1710718258915,-500.0,0.00032,7]
[319408409,1710718258926,-500.0,0.00032,7]
[319408410,1710718258935,-500.0,0.00032,7]
[319408411,1710718258945,-500.0,0.00032,7]
[319408412,1710718258954,-500.0,0.00032,7]
[319408413,1710718258963,-500.0,0.00032,7]
[319408414,1710718258973,-500.0,0.00032,7]
[319408415,1710718258984,-500.0,0.00032,7]
[319408416,1710718258994,-500.0,0.00032,7]
[319408417,1710718259003,-500.0,0.00032,7]
[319408418,1710718259013,-500.0,0.00032,7]
[319408419,1710718259023,-500.0,0.00032,7]
[319408420,1710718259032,-500.0,0.00032,7]
[319408421,1710718259042,-1000.0,0.00032,2]
[319408422,1710718259051,-1200.0,0.00032,33]
[319408423,1710718259073,-2897.0,0.00032,30]
[319408424,1710718259093,-500.0,0.00032,120]
[319408425,1710718259103,-1198250.34671628,0.00032,2]
[319408426,1710718259113,-1000.0,0.00032,120]
[319408427,1710718259123,-250.0039,0.00032,2]
[319408428,1710718259133,-250.0039,0.00032,2]
[319408429,1710718259143,-156.19687461,0.00032027,30]
[319408430,1710718259153,-480.38,0.00032041,2]
[319408431,1710718259163,-150.0,0.00032053,2]
[319408432,1710718259173,-365.34489848,0.00032054,120]
[319408433,1710718259183,-152.438655,0.00032055,14]
[319408434,1710718259193,-500.0,0.000321,7]
[319408435,1710718259203,-500.0,0.000321,7]
[319408436,1710718259213,-500.0,0.000321,7]
[319408437,1710718259224,-500.0,0.000321,7]
[319408438,1710718259234,-500.0,0.000321,7]
[319408439,1710718259243,-500.0,0.000321,7]
[319408440,1710718259252,-500.0,0.000321,7]
[319408441,1710718259261,-500.0,0.000321,7]
[319408442,1710718259271,-500.0,0.000321,7]
[319408443,1710718259282,-500.0,0.000321,7]
[319408444,1710718259291,-500.0,0.000321,7]
[319408445,1710718259301,-500.0,0.000321,7]